fUSD/lending_fUSD_20250906
["ID","MTS","AMOUNT","RATE_DAILY","PERIOD"]
[383805792,1757123453891,-400.0,0.0003589,10]
[383805793,1757123453901,-400.0,0.0003589,10]
[383805794,1757123453910,-254.86921608,0.0003589,10]
[383805795,1757123453920,-400.0,0.0003589,10]
[383805796,1757123453930,-412.12160407,0.0003589,10]
[383805797,1757123453939,-400.0,0.0003589,10]
[383805798,1757123453949,-400.0,0.0003589,10]
[383805799,1757123453958,-416.26740477,0.0003589,10]
[383805800,1757123453968,-410.29940833,0.0003589,10]
[383805801,1757123453977,-417.11028171,0.0003589,10]
[383805802,1757123453987,-400.0,0.0003589,10]
[383805803,1757123453996,-234.33518588,0.0003589,10]
[383805804,1757123454005,-417.20457254,0.0003589,10]
[383805805,1757123454015,-415.75828787,0.0003589,10]
[383805806,1757123454024,-405.51799522,0.0003589,10]
[383805807,1757123454033,-400.0,0.0003589,10]
[383805808,1757123454043,-419.28612796,0.0003589,10]
[383805809,1757123454052,-400.0,0.0003589,10]
[383805810,1757123454061,-400.0,0.0003589,10]
[383805811,1757123454071,-400.0,0.0003589,10]
[383805812,1757123454084,-461.21,0.0003589,10]
[383805813,1757123454094,-436.05073559,0.0003589,10]
[383805814,1757123454103,-400.0,0.0003589,10]
[383805815,1757123454113,-400.0,0.0003589,10]
[383805816,1757123454223,-400.0,0.0003589,10]
[383805817,1757123454233,-400.0,0.0003589,10]
[383805818,1757123454243,-177.35755227,0.0003589,10]
[383805819,1757123454252,-400.0,0.0003589,10]
[383805820,1757123454262,-401.83989339,0.0003589,10]
[383805821,1757123454271,-400.0,0.0003589,10]
[383805822,1757123454281,-400.0,0.0003589,10]
[383805823,1757123454292,-400.0,0.0003589,10]
[383805824,1757123454302,-452.40507803,0.0003589,10]
[383805825,1757123454311,-400.0,0.0003589,10]
[383805826,1757123454321,-400.0,0.0003589,10]
[383805827,1757123454331,-400.0,0.0003589,10]
[383805828,1757123454340,-400.0,0.0003589,10]
[383805829,1757123454350,-445.13368823,0.0003589,10]
[383805830,1757123454359,-400.0,0.0003589,10]
[383805831,1757123454368,-400.0,0.0003589,10]
[383805832,1757123454378,-400.0,0.0003589,10]
[383805833,1757123454387,-400.0,0.0003589,10]
[383805834,1757123454398,-400.0,0.0003589,10]
[383805835,1757123454408,-400.0,0.0003589,10]
[383805836,1757123454418,-457.22078476,0.0003589,10]
[383805837,1757123454428,-400.0,0.0003589,10]
[383805838,1757123454438,-400.0,0.0003589,10]
[383805839,1757123454447,-445.84724564,0.0003589,10]
[383805840,1757123454457,-400.0,0.0003589,10]
[383805841,1757123454467,-400.0,0.0003589,10]
[383805842,1757123454476,-400.0,0.0003589,10]
[383805843,1757123454486,-400.0,0.0003589,10]
[383805844,1757123454495,-400.0,0.0003589,10]
[383805845,1757123454505,-400.0,0.0003589,10]
[383805846,1757123454515,-400.0,0.0003589,10]
[383805847,1757123454524,-400.0,0.0003589,10]
[383805848,1757123454534,-400.0,0.0003589,10]
[383805849,1757123454543,-400.0,0.0003589,10]
[383805850,1757123454553,-415.44085537,0.0003589,10]
[383805851,1757123454563,-413.96104749,0.0003589,10]
[383805852,1757123454572,-400.0,0.0003589,10]
[383805853,1757123454581,-404.09991076,0.0003589,10]
[383805854,1757123454591,-485.16704887,0.0003589,10]
[383805855,1757123454600,-400.0,0.0003589,10]
[383805856,1757123454610,-400.0,0.0003589,10]
[383805857,1757123454619,-400.0,0.0003589,10]
[383805858,1757123454630,-400.0,0.0003589,10]
[383805859,1757123454640,-400.0,0.0003589,10]
[383805860,1757123454650,-400.0,0.0003589,10]
[383805861,1757123454659,-400.0,0.0003589,10]
[383805862,1757123454669,-406.21385499,0.0003589,10]
[383805863,1757123454678,-400.0,0.0003589,10]
[383805864,1757123454687,-314.16746887,0.0003589,10]
[383805865,1757123454697,-388.19907954,0.0003589,10]
[383805866,1757123454707,-400.0,0.0003589,10]
[383805867,1757123454716,-400.0,0.0003589,10]
[383805868,1757123454726,-414.01505228,0.0003589,10]
[383805869,1757123454735,-400.0,0.0003589,10]
[383805870,1757123454745,-400.0,0.0003589,10]
[383805871,1757123454754,-400.0,0.0003589,10]
[383805872,1757123454763,-400.0,0.0003589,10]
[383805873,1757123454773,-400.0,0.0003589,10]
[383805874,1757123454782,-400.0,0.0003589,10]
[383805875,1757123454792,-411.14778243,0.0003589,10]
[383805876,1757123454801,-400.0,0.0003589,10]
[383805877,1757123454811,-400.0,0.0003589,10]
[383805878,1757123454821,-400.0,0.0003589,10]
[383805879,1757123454832,-414.07633949,0.0003589,10]
[383805880,1757123454842,-460.67354698,0.0003589,10]
[383805881,1757123454852,-400.0,0.0003589,10]
[383805882,1757123454863,-402.75730558,0.0003589,10]
[383805883,1757123454873,-417.00082783,0.0003589,10]
[383805884,1757123454882,-450.01962817,0.0003589,10]
[383805885,1757123454892,-400.0,0.0003589,10]
[383805886,1757123454902,-400.0,0.0003589,10]
[383805887,1757123454911,-400.0,0.0003589,10]
[383805888,1757123454921,-525.4174576,0.0003589,10]
[383805889,1757123454930,-400.0,0.0003589,10]
[383805890,1757123454941,-400.0,0.0003589,10]
[383805891,1757123454951,-400.0,0.0003589,10]
[383805892,1757123454960,-400.0,0.0003589,10]
[383805893,1757123454971,-400.0,0.0003589,10]
[383805894,1757123454981,-400.0,0.0003589,10]
[383805895,1757123454990,-400.0,0.0003589,10]
[383805896,1757123454999,-412.92522518,0.0003589,10]
[383805897,1757123455010,-400.0,0.0003589,10]
[383805898,1757123455020,-400.0,0.0003589,10]
[383805899,1757123455030,-424.38441934,0.0003589,10]
[383805900,1757123455039,-400.0,0.0003589,10]
[383805901,1757123455049,-400.0,0.0003589,10]
[383805902,1757123455059,-403.41215862,0.0003589,10]
[383805903,1757123455069,-400.0,0.0003589,10]
[383805904,1757123455082,-491.725115,0.0003589,10]
[383805905,1757123455092,-406.34210222,0.0003589,10]
[383805906,1757123455101,-400.0,0.0003589,10]
[383805907,1757123455111,-400.0,0.0003589,10]
[383805908,1757123455122,-405.91259024,0.0003589,10]
[383805909,1757123455133,-413.94074914,0.0003589,10]
[383805910,1757123455143,-443.51404581,0.0003589,10]
[383805911,1757123455154,-400.0,0.0003589,10]
[383805912,1757123455164,-400.0,0.0003589,10]
[383805913,1757123455174,-427.49966924,0.0003589,10]
[383805914,1757123455184,-437.78541673,0.0003589,10]
[383805915,1757123455194,-400.0,0.0003589,10]
[383805916,1757123455204,-400.0,0.0003589,10]
[383805917,1757123455213,-423.61220659,0.0003589,10]
[383805918,1757123455223,-400.0,0.0003589,10]
[383805919,1757123455232,-400.0,0.0003589,10]
[383805920,1757123455242,-470.43328868,0.0003589,10]
[383805921,1757123455251,-400.0,0.0003589,10]
[383805922,1757123455260,-1339.72,0.0003589,5]
[383805923,1757123455270,-400.0,0.0003589,10]
[383805924,1757123455279,-400.0,0.0003589,10]
[383805925,1757123455288,-400.0,0.0003589,10]
[383805926,1757123455298,-400.0,0.0003589,10]
[383805927,1757123455307,-433.12039879,0.0003589,10]
[383805928,1757123455316,-400.0,0.0003589,10]
[383805929,1757123455325,-400.0,0.0003589,10]
[383805930,1757123455335,-400.0,0.0003589,10]
[383805931,1757123455343,-400.0,0.0003589,10]
[383805932,1757123455353,-400.0,0.0003589,10]
[383805933,1757123455362,-400.0,0.0003589,10]
[383805934,1757123455371,-400.0,0.0003589,10]
[383805935,1757123455380,-400.0,0.0003589,10]
[383805936,1757123455390,-400.0,0.0003589,10]
[383805937,1757123455400,-418.15413507,0.0003589,10]
[383805938,1757123455410,-400.0,0.0003589,10]
[383805939,1757123455420,-400.0,0.0003589,10]
[383805940,1757123455430,-305.84506651,0.0003589,10]
[383805941,1757123455439,-400.0,0.0003589,10]
[383805942,1757123455448,-419.06633852,0.0003589,10]
[383805943,1757123455458,-425.85844115,0.0003589,10]
[383805944,1757123455467,-404.82879527,0.0003589,10]
[383805945,1757123455478,-472.13810735,0.0003589,10]
[383805946,1757123455487,-406.10523743,0.0003589,10]
[383805947,1757123455496,-418.57179425,0.0003589,10]
[383805948,1757123455506,-400.0,0.0003589,10]
[383805949,1757123455515,-400.0,0.0003589,10]
[383805950,1757123455525,-423.49597668,0.0003589,10]
[383805951,1757123455534,-415.27696048,0.0003589,10]
[383805952,1757123455543,-255.78936816,0.0003589,10]
[383805953,1757123455552,-400.0,0.0003589,10]
[383805954,1757123455562,-408.80019022,0.0003589,10]
[383805955,1757123455571,-400.0,0.0003589,10]
[383805956,1757123455580,-400.0,0.0003589,10]
[383805957,1757123455590,-400.0,0.0003589,10]
[383805958,1757123455599,-400.0,0.0003589,10]
[383805959,1757123455609,-400.0,0.0003589,10]
[383805960,1757123455619,-400.0,0.0003589,10]
[383805961,1757123455629,-400.0,0.0003589,10]
[383805962,1757123455639,-400.0,0.0003589,10]
[383805963,1757123455648,-400.0,0.0003589,10]
[383805964,1757123455658,-400.0,0.0003589,10]
[383805965,1757123455667,-400.0,0.0003589,10]
[383805966,1757123455677,-334.16866552,0.0003589,10]
[383805967,1757123455686,-405.01123833,0.0003589,10]
[383805968,1757123455696,-400.0,0.0003589,10]
[383805969,1757123455706,-165.53276807,0.0003589,10]
[383805970,1757123455715,-410.1945476,0.0003589,10]
[383805971,1757123455724,-478.34778144,0.0003589,10]
[383805972,1757123455734,-400.0,0.0003589,10]
[383805973,1757123455743,-400.0,0.0003589,10]
[383805974,1757123455753,-400.0,0.0003589,10]
[383805975,1757123455762,-403.77483586,0.0003589,10]
[383805976,1757123455772,-802.56,0.0003589,10]
[383805977,1757123455781,-400.0,0.0003589,10]
[383805978,1757123455791,-400.0,0.0003589,10]
[383805979,1757123455801,-400.0,0.0003589,10]
[383805980,1757123455810,-408.52248115,0.0003589,10]
[383805981,1757123455820,-400.0,0.0003589,10]
[383805982,1757123455830,-410.0824912,0.0003589,10]
[383805983,1757123455840,-407.85670514,0.0003589,10]
[383805984,1757123455849,-457.17402061,0.0003589,10]
[383805985,1757123455859,-406.79,0.0003589,10]
[383805986,1757123455869,-400.0,0.0003589,10]
[383805987,1757123455878,-400.0,0.0003589,10]
[383805988,1757123455887,-400.0,0.0003589,10]
[383805989,1757123455897,-410.66335813,0.0003589,10]
[383805990,1757123455906,-400.0,0.0003589,10]
[383805991,1757123455915,-416.13230694,0.0003589,10]
[383805992,1757123455924,-400.0,0.0003589,10]
[383805993,1757123455934,-412.28172655,0.0003589,10]
[383805994,1757123455943,-413.64846601,0.0003589,10]
[383805995,1757123455953,-400.0,0.0003589,10]
[383805996,1757123455962,-411.99454611,0.0003589,10]
[383805997,1757123455972,-400.0,0.0003589,10]
[383805998,1757123455981,-409.51202333,0.0003589,10]
[383805999,1757123455990,-424.16200031,0.0003589,10]
[383806000,1757123455999,-400.0,0.0003589,10]
[383806001,1757123456007,-409.5080387,0.0003589,10]
[383806002,1757123456118,-400.0,0.0003589,10]
[383806003,1757123456130,-415.69374749,0.0003589,10]
[383806004,1757123456139,-545.757005,0.0003589,10]
[383806005,1757123456148,-400.0,0.0003589,10]
[383806006,1757123456157,-400.0,0.0003589,10]
[383806007,1757123456167,-409.12474532,0.0003589,10]
[383806008,1757123456177,-400.0,0.0003589,10]
[383806009,1757123456186,-424.57750606,0.0003589,10]
[383806010,1757123456195,-400.0,0.0003589,10]
[383806011,1757123456205,-400.0,0.0003589,10]
[383806012,1757123456215,-400.0,0.0003589,10]
[383806013,1757123456225,-414.43998787,0.0003589,10]
[383806014,1757123456234,-415.92609648,0.0003589,10]
[383806015,1757123456244,-413.66061523,0.0003589,10]
[383806016,1757123456253,-413.36068636,0.0003589,10]
[383806017,1757123456267,-415.27574379,0.0003589,10]
[383806018,1757123456277,-400.0,0.0003589,10]
[383806019,1757123456286,-411.33563674,0.0003589,10]
[383806020,1757123456295,-400.0,0.0003589,10]
[383806021,1757123456305,-400.0,0.0003589,10]
[383806022,1757123456314,-400.0,0.0003589,10]
[383806023,1757123456324,-414.75839905,0.0003589,10]
[383806024,1757123456334,-304.91361925,0.0003589,10]
[383806025,1757123456343,-400.0,0.0003589,10]
[383806026,1757123456353,-400.0,0.0003589,10]
[383806027,1757123456362,-400.0,0.0003589,10]
[383806028,1757123456372,-504.18093962,0.0003589,10]
[383806029,1757123456381,-410.45244047,0.0003589,10]
[383806030,1757123456391,-413.78702253,0.0003589,10]
[383806031,1757123456400,-157.50736382,0.0003589,10]
[383806032,1757123456413,-400.0,0.0003589,10]
[383806033,1757123456423,-414.44205341,0.0003589,10]
[383806034,1757123456432,-414.66084384,0.0003589,10]
[383806035,1757123456442,-594.59,0.0003589,10]
[383806036,1757123456451,-407.91577071,0.0003589,10]
[383806037,1757123456461,-400.0,0.0003589,10]
[383806038,1757123456470,-400.0,0.0003589,10]
[383806039,1757123456479,-411.61024464,0.0003589,10]
[383806040,1757123456489,-412.78355845,0.0003589,10]
[383806041,1757123456498,-400.0,0.0003589,10]
[383806042,1757123456508,-414.19341349,0.0003589,10]
[383806043,1757123456517,-400.0,0.0003589,10]
[383806044,1757123456527,-400.0,0.0003589,10]
[383806045,1757123456537,-400.0,0.0003589,10]
[383806046,1757123456547,-400.0,0.0003589,10]
[383806047,1757123456556,-400.0,0.0003589,10]
[383806048,1757123456566,-400.0,0.0003589,10]
[383806049,1757123456575,-400.0,0.0003589,10]
[383806050,1757123456584,-400.0,0.0003589,10]
[383806051,1757123456593,-400.0,0.0003589,10]
[383806052,1757123456601,-481.71,0.0003589,10]
[383806053,1757123456610,-400.0,0.0003589,10]
[383806054,1757123456619,-412.53,0.0003589,10]
[383806055,1757123456629,-400.0,0.0003589,10]
[383806056,1757123456638,-470.39,0.0003589,10]
[383806057,1757123456647,-400.0,0.0003589,10]
[383806058,1757123456656,-400.0,0.0003589,10]
[383806059,1757123456666,-400.0,0.0003589,10]
[383806060,1757123456675,-400.0,0.0003589,10]
[383806061,1757123456684,-400.0,0.0003589,10]
[383806062,1757123456693,-400.0,0.0003589,10]
[383806063,1757123456702,-400.0,0.0003589,10]
[383806064,1757123456712,-400.0,0.0003589,10]
[383806065,1757123456721,-400.0,0.0003589,10]
[383806066,1757123456731,-400.0,0.0003589,10]
[383806067,1757123456740,-400.0,0.0003589,10]
[383806068,1757123456749,-400.0,0.0003589,10]
[383806069,1757123456759,-258.12132565,0.0003589,10]
[383806070,1757123456769,-400.0,0.0003589,10]
[383806071,1757123456778,-400.0,0.0003589,10]
[383806072,1757123456787,-775.57,0.0003589,10]
[383806073,1757123456796,-2894.96,0.0003589,10]
[383806074,1757123456806,-400.0,0.0003589,10]
[383806075,1757123456815,-161.14672962,0.0003589,10]
[383806076,1757123456825,-400.0,0.0003589,10]
[383806077,1757123456835,-400.0,0.0003589,10]
[383806078,1757123456844,-477.35445776,0.0003589,10]
[383806079,1757123456854,-428.25581842,0.0003589,10]
[383806080,1757123456864,-400.0,0.0003589,10]
[383806081,1757123456874,-400.0,0.0003589,10]
[383806082,1757123456884,-510.25297724,0.0003589,10]
[383806083,1757123456893,-400.0,0.0003589,10]
[383806084,1757123456904,-400.0,0.0003589,10]
[383806085,1757123456914,-400.0,0.0003589,10]
[383806086,1757123456924,-400.0,0.0003589,10]
[383806087,1757123456934,-400.0,0.0003589,10]
[383806088,1757123456944,-400.0,0.0003589,10]
[383806089,1757123456953,-400.0,0.0003589,10]
[383806090,1757123456963,-400.0,0.0003589,10]
[383806091,1757123456973,-400.0,0.0003589,10]
[383806092,1757123456983,-400.0,0.0003589,10]
[383806093,1757123456993,-400.0,0.0003589,10]
[383806094,1757123457001,-412.26570013,0.0003589,10]
[383806095,1757123457011,-300.0,0.000359,13]
[383806096,1757123457020,-150.0,0.00036064,2]
[383806097,1757123457029,-202.81113856,0.00036064,2]
[383806098,1757123457039,-214.12924858,0.00036064,2]
[383806099,1757123457048,-150.0,0.00036064,2]
[383806100,1757123457058,-209.35267577,0.00036064,2]
[383806101,1757123457068,-203.74986867,0.00036064,2]
[383806102,1757123457080,-203.92718512,0.00036064,2]
[383806103,1757123457090,-294.75,0.00036064,2]
[383806104,1757123457099,-217.72218758,0.00036064,2]
[383806105,1757123457109,-208.25366652,0.00036064,2]
[383806106,1757123457119,-186.78951733,0.00036064,2]
[383806107,1757123457128,-316.0,0.0003608,2]
[383806108,1757123457138,-402.35801394,0.00036163,10]
[383806109,1757123457149,-412.38254462,0.00036163,10]
[383806110,1757123457158,-403.32690168,0.00036163,10]
[383806111,1757123457168,-408.92823717,0.00036163,10]
[383806112,1757123457177,-400.0,0.00036163,10]
[383806113,1757123457186,-402.21788409,0.00036163,10]
[383806114,1757123457196,-405.80465087,0.00036163,10]
[383806115,1757123457206,-406.30728057,0.00036163,10]
[383806116,1757123457215,-402.48242597,0.00036163,10]
[383806117,1757123457225,-400.0,0.00036163,10]
[383806118,1757123457235,-400.0,0.00036163,10]
[383806119,1757123457246,-449.02623864,0.00036163,10]
[383806120,1757123457256,-400.0,0.00036163,10]
[383806121,1757123457265,-167.65389437,0.00036163,10]
[383806122,1757123457275,-400.0,0.00036163,10]
[383806123,1757123457284,-400.0,0.00036163,10]
[383806124,1757123457294,-400.0,0.00036163,10]
[383806125,1757123457304,-400.0,0.00036163,10]
[383806126,1757123457314,-400.0,0.00036163,10]
[383806127,1757123457324,-400.0,0.00036163,10]
[383806128,1757123457333,-400.0,0.00036163,10]
[383806129,1757123457342,-400.0,0.00036163,10]
[383806130,1757123457353,-456.2,0.00036163,10]
[383806131,1757123457363,-457.04,0.00036163,10]
[383806132,1757123457373,-180.0,0.00036163,10]
[383806133,1757123457383,-413.79841565,0.00036163,10]
[383806134,1757123457393,-400.0,0.00036163,10]
[383806135,1757123457402,-400.0,0.00036163,10]
[383806136,1757123457412,-400.0,0.00036163,10]
[383806137,1757123457423,-400.0,0.00036163,10]
[383806138,1757123457433,-400.0,0.00036163,10]
[383806139,1757123457443,-400.0,0.00036163,10]
[383806140,1757123457453,-405.17682422,0.00036163,10]
[383806141,1757123457462,-400.0,0.00036163,10]
[383806142,1757123457471,-400.0,0.00036163,10]
[383806143,1757123457481,-535.93993681,0.00036163,10]
[383806144,1757123457490,-400.0,0.00036163,10]
[383806145,1757123457500,-400.0,0.00036163,10]
[383806146,1757123457510,-405.19649157,0.00036163,10]
[383806147,1757123457520,-402.03490833,0.00036163,10]
[383806148,1757123457529,-400.0,0.00036163,10]
[383806149,1757123457539,-400.0,0.00036163,10]
[383806150,1757123457548,-401.96923323,0.00036163,10]
[383806151,1757123457557,-430.5,0.00036163,10]
[383806152,1757123457567,-400.0,0.00036163,10]
[383806153,1757123457576,-368.86454065,0.00036163,10]
[383806154,1757123457586,-400.0,0.00036163,10]
[383806155,1757123457595,-400.0,0.00036163,10]
[383806156,1757123457602,-400.0,0.00036163,10]
[383806157,1757123457611,-421.11087612,0.00036163,10]
[383806158,1757123457621,-400.0,0.00036163,10]
[383806159,1757123457631,-400.0,0.00036163,10]
[383806160,1757123457640,-422.86930009,0.00036163,10]
[383806161,1757123457649,-400.0,0.00036163,10]
[383806162,1757123457658,-400.0,0.00036163,10]
[383806163,1757123457668,-400.0,0.00036163,10]
[383806164,1757123457677,-400.0,0.00036163,10]
[383806165,1757123457686,-408.84855684,0.00036163,10]
[383806166,1757123457696,-404.87729933,0.00036163,10]
[383806167,1757123457706,-405.97856097,0.00036163,10]
[383806168,1757123457715,-400.0,0.00036163,10]
[383806169,1757123457724,-425.26996419,0.00036163,10]
[383806170,1757123457734,-401.93480346,0.00036163,10]
[383806171,1757123457743,-400.0,0.00036163,10]
[383806172,1757123457839,-400.0,0.00036163,10]
[383806173,1757123457849,-400.0,0.00036163,10]
[383806174,1757123457859,-405.8,0.00036163,10]
[383806175,1757123457868,-400.42819974,0.00036163,10]
[383806176,1757123457878,-400.0,0.00036163,10]
[383806177,1757123457887,-400.0,0.00036163,10]
[383806178,1757123457895,-198.71079911,0.00036163,10]
[383806179,1757123457904,-400.0,0.00036163,10]
[383806180,1757123457912,-400.0,0.00036163,10]
[383806181,1757123457922,-400.0,0.00036163,10]
[383806182,1757123457931,-400.0,0.00036163,10]
[383806183,1757123457940,-400.0,0.00036163,10]
[383806184,1757123457950,-400.0,0.00036163,10]
[383806185,1757123457959,-400.0,0.00036163,10]
[383806186,1757123457968,-400.0,0.00036163,10]
[383806187,1757123457978,-400.0,0.00036163,10]
[383806188,1757123457987,-400.0,0.00036163,10]
[383806189,1757123457997,-400.0,0.00036163,10]
[383806190,1757123458007,-400.0,0.00036163,10]
[383806191,1757123458017,-400.0,0.00036163,10]
[383806192,1757123458027,-400.0,0.00036163,10]
[383806193,1757123458036,-400.0,0.00036163,10]
[383806194,1757123458046,-400.0,0.00036163,10]
[383806195,1757123458056,-400.0,0.00036163,10]
[383806196,1757123458065,-400.0,0.00036163,10]
[383806197,1757123458078,-400.0,0.00036163,10]
[383806198,1757123458088,-400.0,0.00036163,10]
[383806199,1757123458098,-400.0,0.00036163,10]
[383806200,1757123458107,-400.0,0.00036163,10]
[383806201,1757123458117,-400.0,0.00036163,10]
[383806202,1757123458128,-432.39257637,0.00036163,10]
[383806203,1757123458138,-400.0,0.00036163,10]
[383806204,1757123458148,-400.0,0.00036163,10]
[383806205,1757123458158,-400.0,0.00036163,10]
[383806206,1757123458169,-400.0,0.00036163,10]
[383806207,1757123458178,-400.0,0.00036163,10]
[383806208,1757123458188,-400.0,0.00036163,10]
[383806209,1757123458198,-400.0,0.00036163,10]
[383806210,1757123458207,-403.28403591,0.00036163,10]
[383806211,1757123458217,-407.90723017,0.00036163,10]
[383806212,1757123458227,-401.7390759,0.00036163,10]
[383806213,1757123458237,-400.0,0.00036163,10]
[383806214,1757123458248,-400.0,0.00036163,10]
[383806215,1757123458258,-400.0,0.00036163,10]
[383806216,1757123458267,-400.0,0.00036163,10]
[383806217,1757123458277,-400.0,0.00036163,10]
[383806218,1757123458286,-433.31,0.00036163,10]
[383806219,1757123458296,-400.0,0.00036163,10]
[383806220,1757123458305,-402.94620437,0.00036163,10]
[383806221,1757123458315,-400.0,0.00036163,10]
[383806222,1757123458324,-400.0,0.00036163,10]
[383806223,1757123458333,-400.0,0.00036163,10]
[383806224,1757123458342,-400.0,0.00036163,10]
[383806225,1757123458352,-402.34484504,0.00036163,10]
[383806226,1757123458362,-400.0,0.00036163,10]
[383806227,1757123458372,-401.97303442,0.00036163,10]
[383806228,1757123458382,-400.0,0.00036163,10]
[383806229,1757123458391,-400.0,0.00036163,10]
[383806230,1757123458401,-400.0,0.00036163,10]
[383806231,1757123458410,-400.0,0.00036163,10]
[383806232,1757123458420,-400.0,0.00036163,10]
[383806233,1757123458429,-400.0,0.00036163,10]
[383806234,1757123458439,-400.0,0.00036163,10]
[383806235,1757123458448,-400.0,0.00036163,10]
[383806236,1757123458458,-400.0,0.00036163,10]
[383806237,1757123458467,-400.0,0.00036163,10]
[383806238,1757123458476,-358.72105099,0.00036163,10]
[383806239,1757123458486,-400.0,0.00036163,10]
[383806240,1757123458495,-400.0,0.00036163,10]
[383806241,1757123458505,-400.0,0.00036163,10]
[383806242,1757123458514,-400.0,0.00036163,10]
[383806243,1757123458524,-400.0,0.00036163,10]
[383806244,1757123458533,-400.0,0.00036163,10]
[383806245,1757123458543,-438.35,0.00036163,10]
[383806246,1757123458554,-400.0,0.00036163,10]
[383806247,1757123458563,-400.0,0.00036163,10]
[383806248,1757123458572,-400.0,0.00036163,10]
[383806249,1757123458582,-400.0,0.00036163,10]
[383806250,1757123458591,-400.0,0.00036163,10]
[383806251,1757123458601,-400.0,0.00036163,10]
[383806252,1757123458611,-400.0,0.00036163,10]
[383806253,1757123458620,-402.41131758,0.00036163,10]
[383806254,1757123458630,-400.0,0.00036163,10]
[383806255,1757123458640,-400.0,0.00036163,10]
[383806256,1757123458650,-400.0,0.00036163,10]
[383806257,1757123458659,-400.0,0.00036163,10]
[383806258,1757123458668,-400.0,0.00036163,10]
[383806259,1757123458678,-400.0,0.00036163,10]
[383806260,1757123458688,-400.0,0.00036163,10]
[383806261,1757123458697,-400.0,0.00036163,10]
[383806262,1757123458706,-436.69,0.00036163,10]
[383806263,1757123458716,-400.0,0.00036163,10]
[383806264,1757123458726,-435.84366837,0.00036163,10]
[383806265,1757123458735,-400.0,0.00036163,10]
[383806266,1757123458745,-400.0,0.00036163,10]
[383806267,1757123458754,-400.0,0.00036163,10]
[383806268,1757123458764,-407.78661208,0.00036163,10]
[383806269,1757123458774,-400.0,0.00036163,10]
[383806270,1757123458783,-400.0,0.00036163,10]
[383806271,1757123458793,-400.0,0.00036163,10]
[383806272,1757123458803,-400.0,0.00036163,10]
[383806273,1757123458813,-853.32,0.00036163,10]
[383806274,1757123458822,-400.0,0.00036163,10]
[383806275,1757123458832,-400.0,0.00036163,10]
[383806276,1757123458841,-400.0,0.00036163,10]
[383806277,1757123458851,-446.39760383,0.00036163,10]
[383806278,1757123458861,-400.0,0.00036163,10]
[383806279,1757123458871,-400.0,0.00036163,10]
[383806280,1757123458881,-400.0,0.00036163,10]
[383806281,1757123458891,-442.37397463,0.00036163,10]
[383806282,1757123458902,-400.0,0.00036163,10]
[383806283,1757123458913,-428.77,0.00036163,10]
[383806284,1757123458924,-400.0,0.00036163,10]
[383806285,1757123458934,-400.0,0.00036163,10]
[383806286,1757123458944,-400.0,0.00036163,10]
[383806287,1757123458954,-400.0,0.00036163,10]
[383806288,1757123458964,-400.0,0.00036163,10]
[383806289,1757123458973,-1000.0,0.00036163,10]
[383806290,1757123458983,-400.0,0.00036163,10]
[383806291,1757123458993,-500.0,0.00036163,2]